bitfinex/quotes_ETHUSD_20250314
["timestamp","ask_amount","ask_price","bid_price","bid_amount"]
[1741955749329,23.352,1909.6,1909.4,5.23709]
[1741955749530,28.345,1909.6,1909.5,0.19030837]
[1741955749959,28.345,1909.6,1909.5,5.42727837]
[1741955750468,23.352,1909.6,1909.5,6.49371521]
[1741955750759,17.332,1909.6,1909.5,0.19030837]
[1741955751159,22.99549,1909.6,1909.3,5.23748]
[1741955751468,22.99549,1909.6,1909.4,0.1904013]
[1741955752061,22.99549,1909.6,1909.2,10.47535]
[1741955752230,25.99549,1909.6,1909.5,0.19020367]
[1741955752431,25.99549,1909.6,1909.3,5.2375]
[1741955752626,25.99549,1909.6,1909.5,0.19020367]
[1741955752854,25.99549,1909.6,1909.4,0.1904013]
[1741955753052,29.61799,1909.6,1909.5,0.19020367]
[1741955753259,35.63799,1909.6,1909.5,0.19020367]
[1741955753462,5.23706,1909.5,1909.1,5.23795]
[1741955753853,5.23706,1909.5,1909.2,0.19079664]
[1741955754857,5.23706,1909.5,1909.1,5.23795]
[1741955755168,5.23727,1909.4,1909.2,0.19079664]
[1741955755351,5.23727,1909.4,1909.1,5.23795]
[1741955755352,4.996,1909.3,1909.1,5.23795]
[1741955755554,4.996,1909.3,1909.2,0.19057071]
[1741955755727,4.996,1909.3,1909.1,5.23795]
[1741955756160,4.996,1909.3,1909.2,0.19057071]
[1741955757931,4.996,1909.3,1909.0,10.47651]
[1741955758130,4.996,1909.3,1909.1,0.19076841]
[1741955759272,8.2378,1909.2,1908.9,6.05688]
[1741955759640,8.2378,1909.2,1908.9,0.8183]
[1741955760263,5.2378,1909.2,1908.9,6.05677]
[1741955760563,11.16005,1909.3,1908.9,6.05677]
[1741955760766,11.16005,1909.3,1909.0,5.2383]
[1741955760964,5.9224,1909.3,1909.0,5.23816]
[1741955761263,4.988,1909.3,1909.2,5.23776]
[1741955761447,5.63471562,1909.5,1909.2,5.23776]
[1741955761762,4.988,1909.4,1909.1,10.47575]
[1741955761962,4.988,1909.4,1909.2,0.8167]
[1741955762136,4.987,1909.4,1909.3,5.2375]
[1741955762336,4.989,1909.5,1909.3,6.366577]
[1741955762661,4.989,1909.5,1909.2,6.05446]
[1741955763270,4.989,1909.5,1909.2,11.2921]
[1741955763433,4.989,1909.5,1909.3,5.23748]
[1741955763864,7.992,1909.5,1909.3,5.23748]
[1741955765239,7.992,1909.5,1909.3,5.23742]
[1741955765439,7.992,1909.5,1909.4,5.23724]
[1741955765670,7.992,1909.5,1909.3,5.23742]
[1741955766176,7.992,1909.5,1909.2,11.29195]
[1741955766375,7.992,1909.5,1909.3,5.23752]
[1741955766868,7.992,1909.5,1909.2,6.0543]
[1741955767043,13.22898,1909.5,1909.2,6.0543]
[1741955767249,5.23734,1909.4,1909.0,6.06493]
[1741955768141,5.23734,1909.4,1909.0,11.30309]
[1741955768343,13.65579,1909.5,1909.1,10.47593]
[1741955768744,13.65579,1909.5,1909.1,5.23788]
[1741955768944,18.89294,1909.5,1909.2,0.19059825]
[1741955769269,21.84989606,1909.5,1909.2,0.19059825]
[1741955769440,16.61274606,1909.5,1909.2,0.19059825]
[1741955769641,21.84995606,1909.5,1909.2,0.19059825]
[1741955769839,16.61274606,1909.5,1909.2,0.19059825]
[1741955770654,11.37575606,1909.5,1909.2,0.19059825]
[1741955770874,3.0,1909.5,1909.2,1.00049825]
[1741955771162,4.983,1909.4,1909.2,6.0476]
[1741955771366,7.983,1909.4,1909.3,0.19040057]
[1741955771572,13.22024,1909.4,1909.0,11.29573]
[1741955771752,13.22024,1909.4,1909.1,0.19079595]
[1741955772359,7.983,1909.4,1909.1,5.42877595]
[1741955772564,7.983,1909.4,1909.2,5.23777]
[1741955772761,7.983,1909.4,1909.3,0.19040057]
[1741955773676,4.983,1909.4,1909.3,6.25252057]
[1741955773973,4.996,1909.5,1909.4,5.2372]
[1741955774275,4.996,1909.5,1909.4,5.42740291]
[1741955774644,6.02,1909.6,1909.4,10.66447291]
[1741955774843,11.016,1909.6,1909.4,10.66447291]
[1741955775177,11.016,1909.6,1909.4,5.42727291]
[1741955776072,4.996,1909.6,1909.4,6.5762112]
[1741955776272,4.996,1909.6,1909.5,5.23697]
[1741955776662,4.996,1909.6,1909.5,0.19000528]
[1741955777378,4.996,1909.6,1909.3,6.06208]
[1741955777566,4.996,1909.6,1909.4,0.19020291]
[1741955777766,10.23278,1909.6,1909.3,6.06208]
[1741955777967,4.996,1909.6,1909.4,0.19020291]
[1741955778162,4.996,1909.6,1909.3,7.192066]
[1741955778367,4.996,1909.6,1909.4,0.19020291]
[1741955778546,4.996,1909.6,1909.3,7.192066]
[1741955778746,10.23283,1909.6,1909.4,0.19020291]
[1741955778946,4.996,1909.6,1909.3,6.06198]
[1741955779177,4.996,1909.6,1909.4,0.1900101]
[1741955779358,4.996,1909.6,1909.3,7.19719316]
[1741955779563,10.2327,1909.6,1909.4,0.1900101]
[1741955779771,4.996,1909.6,1909.3,0.8246]
[1741955779976,4.996,1909.6,1909.4,5.4271201]
[1741955780367,4.996,1909.6,1909.4,5.4270601]
[1741955780549,4.996,1909.6,1909.4,6.57597411]
[1741955780975,4.996,1909.6,1909.4,11.81307411]
[1741955781359,4.996,1909.6,1909.5,5.23697]
[1741955781678,4.996,1909.6,1909.5,5.42678246]
[1741955782075,17.329,1909.7,1909.5,5.42678246]
[1741955782277,22.314,1909.7,1909.5,5.42678246]
[1741955782478,22.314,1909.7,1909.5,0.18981246]
[1741955782650,27.55055,1909.7,1909.5,0.18981246]
[1741955782850,31.37326706,1909.7,1909.5,0.18981246]
[1741955783082,31.37326706,1909.7,1909.3,6.06201]
[1741955783270,27.55055,1909.7,1909.6,0.18961484]
[1741955783465,5.23673,1909.6,1909.3,6.062]
[1741955783665,10.47367,1909.6,1909.3,0.8246]
[1741955783851,5.23737,1909.4,1909.0,5.98885]
[1741955784047,5.23737,1909.4,1909.0,11.22702]
[1741955784355,10.47484,1909.4,1909.0,5.98877]
[1741955784555,4.986,1909.3,1909.1,5.23796]
[1741955784757,4.986,1909.3,1909.0,5.98877]
[1741955785152,10.22354,1909.3,1909.0,5.98877]
[1741955785475,10.22354,1909.3,1909.0,7.111505]
[1741955785476,4.986,1909.3,1909.0,7.111505]
[1741955785650,4.986,1909.3,1909.1,5.23787]
[1741955786261,4.986,1909.3,1909.2,5.23779]
[1741955786781,4.986,1909.3,1909.1,5.23787]
[1741955788483,4.986,1909.3,1909.1,10.4758]
[1741955788685,4.986,1909.3,1909.1,6.4727835]
[1741955788886,4.986,1909.3,1909.1,5.23787]
[1741955789056,4.986,1909.3,1909.1,5.23786]
[1741955789383,4.986,1909.3,1909.2,5.23779]
[1741955789692,4.986,1909.3,1909.1,5.23786]
[1741955789859,4.986,1909.3,1909.1,10.47578]
[1741955790060,4.986,1909.3,1909.1,5.23786]
[1741955790471,4.986,1909.3,1909.1,10.47578]
[1741955790793,4.986,1909.3,1909.1,6.360498]
[1741955792808,10.2237,1909.3,1908.9,0.7774]
[1741955792982,5.23788,1909.2,1908.9,0.7774]
[1741955793181,5.23788,1909.2,1908.9,6.01598]
[1741955794249,4.986,1909.3,1909.0,5.23821]
[1741955794499,4.986,1909.3,1909.0,5.23811]
[1741955794804,4.986,1909.3,1909.1,5.23798]
[1741955794805,4.98,1909.3,1909.1,5.23798]
[1741955795099,4.98,1909.3,1909.1,10.47591]
[1741955795607,4.98,1909.3,1909.1,5.23793]
[1741955796476,4.98,1909.3,1909.1,10.47583]
[1741955796798,4.98,1909.3,1909.1,5.2379]
[1741955798401,14.655627,1909.5,1909.1,5.2379]
[1741955798600,4.973,1909.4,1909.1,5.2379]
[1741955799006,4.973,1909.4,1909.2,0.17774277]
[1741955799808,10.21037,1909.4,1909.2,0.17774277]
[1741955800111,0.4268,1909.3,1909.0,5.23821]
[1741955800481,5.66443,1909.3,1909.0,5.23821]
[1741955801512,10.90212,1909.3,1908.9,6.01589]
[1741955801713,5.23785,1909.2,1908.8,5.23885]
[1741955801891,5.23821,1909.1,1908.7,11.30872]
[1741955802092,5.23821,1909.1,1908.7,12.439592]
[1741955802493,5.3978,1909.0,1908.7,5.239]
[1741955802707,5.23874,1908.9,1908.6,5.23941]
[1741955802890,5.23874,1908.9,1908.5,6.0114]
[1741955803094,5.23892,1908.8,1908.5,6.0114]
[1741955803404,5.23918,1908.7,1908.3,6.05629]
[1741955803604,5.66598,1908.7,1908.3,12.426039]
[1741955803786,10.90535,1908.7,1908.3,7.185849]
[1741955803984,4.972,1908.6,1908.3,7.185849]
[1741955804183,10.21145,1908.6,1908.3,6.369749]
[1741955804419,10.21145,1908.6,1908.2,5.24052]
[1741955804719,4.972,1908.6,1908.3,5.24015]
[1741955806017,4.972,1908.6,1908.4,5.23998]
[1741955806193,4.972,1908.6,1908.4,5.99154]
[1741955806897,4.972,1908.6,1908.5,5.23971]
[1741955807095,4.972,1908.6,1908.5,6.362835]
[1741955808317,3.0,1908.8,1908.7,5.23895]
[1741955808720,6.02,1908.9,1908.8,5.23889]
[1741955809099,7.973,1909.0,1908.9,5.23861]
[1741955810203,4.973,1909.0,1908.9,5.23861]
[1741955810795,10.63819,1909.0,1908.7,5.23914]
[1741955813321,5.3998,1909.0,1908.7,10.47812]
[1741955813525,5.3998,1909.0,1908.7,5.23898]
[1741955814022,5.3998,1909.0,1908.8,0.1791799]
[1741955815494,5.3998,1909.0,1908.8,5.4180599]
[1741955815929,5.3998,1909.0,1908.8,0.1791799]
[1741955818207,10.63827,1909.0,1908.8,0.1791799]
[1741955818407,14.560918,1909.0,1908.8,0.1791799]
[1741955819104,19.21753863,1909.0,1908.8,0.1791799]
[1741955819330,5.23861,1908.9,1908.8,0.1791799]
[1741955819501,5.23861,1908.9,1908.6,5.2394]
[1741955819701,5.23861,1908.9,1908.8,0.17894437]
[1741955820012,2.06812064,1908.9,1908.8,0.17894437]
[1741955820208,19.21753863,1909.0,1908.6,5.23928]
[1741955820414,19.21753863,1909.0,1908.7,0.17914215]
[1741955820619,19.21753863,1909.0,1908.6,10.47862]
[1741955820813,19.21753863,1909.0,1908.7,0.17914215]
[1741955821013,24.45605863,1909.0,1908.6,5.23928]
[1741955821224,2.44560586,1908.9,1908.7,0.17914215]
[1741955821628,9.322448,1909.0,1908.7,5.23906]
[1741955821939,9.322448,1909.0,1908.8,0.17897723]
[1741955822238,14.560788,1909.0,1908.8,0.17897723]
[1741955822434,24.45591863,1909.0,1908.8,0.17897723]
[1741955822824,24.45591863,1909.0,1908.6,5.23939]
[1741955823028,19.21740863,1909.0,1908.7,0.17918049]
[1741955823504,19.21740863,1909.0,1908.6,5.2393]
[1741955823704,19.21740863,1909.0,1908.8,0.17898271]
[1741955823900,1.92174086,1908.9,1908.7,5.41832049]
[1741955824133,19.21740863,1909.0,1908.7,5.23914]
[1741955826442,13.97906863,1909.0,1908.7,10.47814]
[1741955826742,13.97906863,1909.0,1908.7,5.239]
[1741955827406,13.97906863,1909.0,1908.7,5.23899]
[1741955827606,13.97906863,1909.0,1908.7,5.23898]
[1741955828216,1.39790686,1908.9,1908.7,5.23898]
[1741955828431,1.39790686,1908.9,1908.6,5.2394]
[1741955829050,1.39790686,1908.9,1908.7,0.17918047]
[1741955829420,1.39790686,1908.9,1908.6,10.47872]
[1741955829643,5.3998,1909.0,1908.7,5.41822047]
[1741955829841,5.3998,1909.0,1908.7,10.65729047]
[1741955830020,5.3998,1909.0,1908.7,5.41822047]
[1741955830223,4.973,1909.0,1908.7,5.41824047]
[1741955830431,4.972,1908.9,1908.8,5.23887]
[1741955830848,4.972,1908.9,1908.8,5.41786365]
[1741955832657,4.972,1908.9,1908.8,0.17899365]
[1741955832956,5.7692,1908.9,1908.8,0.17899365]
[1741955833250,4.972,1908.9,1908.8,0.17899365]
[1741955834032,4.972,1908.9,1908.8,5.41788365]
[1741955838073,4.972,1908.9,1908.8,5.41788365]
[1741955839732,18.29403063,1908.9,1908.8,0.17899365]
[1741955839935,18.29403063,1908.9,1908.5,5.23956]
[1741955840140,3.0,1908.8,1908.4,5.23988]
[1741955840318,8.23898,1908.8,1908.6,0.17297485]
[1741955840536,9.78542106,1908.8,1908.6,0.8223]
[1741955840731,15.02440106,1908.8,1908.7,0.17281515]
[1741955840936,15.02440106,1908.8,1908.4,11.29563]
[1741955841239,9.89584063,1908.7,1908.5,0.17321078]
[1741955841452,0.4268,1908.6,1908.5,0.17321078]
[1741955841659,5.66624,1908.6,1908.2,6.05635]
[1741955841858,11.68624,1908.6,1908.5,0.16724423]
[1741955842055,11.68624,1908.6,1908.2,6.05635]
[1741955842256,8.24016,1908.4,1908.0,6.05695]
[1741955842457,13.21216,1908.4,1908.0,6.05682]
[1741955843663,18.45236,1908.4,1908.0,6.05682]
[1741955844038,13.21216,1908.4,1908.1,0.16803573]
[1741955844234,13.63896,1908.4,1908.1,0.16803573]
[1741955844444,15.99249306,1908.4,1908.1,0.16803573]
[1741955844635,5.2403,1908.3,1908.1,0.16803573]
[1741955845467,15.99249306,1908.4,1908.1,0.16803573]
[1741955845672,7.972,1908.4,1908.1,5.40882573]
[1741955847264,7.972,1908.4,1908.2,5.24054]
[1741955847471,7.972,1908.4,1908.1,5.40879573]
[1741955847687,7.972,1908.4,1908.3,0.16819532]
[1741955847890,10.32551706,1908.4,1908.2,0.16838776]
[1741955848041,7.972,1908.4,1908.3,0.16818987]
[1741955848453,7.972,1908.4,1908.1,5.24076]
[1741955848648,7.972,1908.4,1908.3,0.16818987]
[1741955848953,13.21202,1908.4,1908.3,0.16818987]
[1741955849268,13.21202,1908.4,1908.1,5.24076]
[1741955849438,13.21202,1908.4,1908.3,0.16818987]
[1741955849657,15.56554406,1908.4,1908.1,5.24076]
[1741955849842,15.56554406,1908.4,1908.3,0.16818987]
[1741955850068,15.56554406,1908.4,1908.2,0.16838776]
[1741955850251,20.80578406,1908.4,1908.3,0.16818987]
[1741955850454,15.56554406,1908.4,1908.3,0.16818987]
[1741955850678,5.24081,1908.2,1907.8,6.0447328]
[1741955850869,9.89772063,1908.0,1907.8,0.0052028]
[1741955851189,13.64116,1907.9,1907.8,0.0052028]
[1741955851868,19.66116,1907.9,1907.8,0.0052028]
[1741955852957,19.66116,1907.9,1907.8,1e-08]
[1741955855503,20.05028136,1907.9,1907.8,1e-08]
[1741955855669,23.53663642,1907.9,1907.8,1e-08]
[1741955855990,23.53763642,1907.9,1907.8,1e-08]
[1741955858888,13.32227642,1907.9,1907.8,1e-08]
[1741955859087,14.38312136,1907.9,1907.8,1e-08]
[1741955859589,14.38312136,1907.9,1907.8,5.24163001]
[1741955859590,6.02,1907.9,1907.8,5.24163001]
[1741955859795,10.994,1907.9,1907.8,5.39512713]
[1741955859995,13.994,1907.9,1907.8,5.39512713]
[1741955860192,10.994,1907.9,1907.8,5.39512713]
[1741955860373,10.994,1907.9,1907.8,7.27382484]
[1741955860374,4.974,1907.9,1907.8,7.27382484]
[1741955860765,4.974,1907.9,1907.8,0.15349713]
[1741955861876,4.974,1907.9,1907.8,5.39512713]
[1741955863295,4.974,1907.9,1907.8,0.15349713]
[1741955864314,13.64216,1907.9,1907.8,0.15349713]
[1741955864797,19.66216,1907.9,1907.8,0.15349713]
[1741955864997,22.61814706,1907.9,1907.8,0.15349713]
[1741955865224,22.61814706,1907.9,1907.8,1e-08]
[1741955865774,22.61814706,1907.9,1907.8,0.15328459]
[1741955865968,22.61814706,1907.9,1907.8,1e-08]
[1741955866623,22.61814706,1907.9,1907.8,0.15328459]
[1741955866779,17.37678706,1907.9,1907.8,0.15328459]
[1741955866974,22.19134706,1907.9,1907.8,1e-08]
[1741955867193,22.19134706,1907.9,1907.8,0.15328459]
[1741955867886,13.994,1907.9,1907.8,0.15328459]
[1741955870374,13.994,1907.9,1907.8,5.39491459]
[1741955870895,18.65062063,1907.9,1907.8,0.15328459]
[1741955871971,24.31878063,1907.9,1907.8,0.15328459]
[1741955872176,24.31878063,1907.9,1907.8,1e-08]
[1741955872403,29.00907769,1907.9,1907.8,1e-08]
[1741955873480,29.00907769,1907.9,1907.8,0.15314834]
[1741955873679,29.00907769,1907.9,1907.8,1e-08]
[1741955873881,29.00907769,1907.9,1907.8,0.15314834]
[1741955874083,29.00907769,1907.9,1907.8,1e-08]
[1741955874303,29.00907769,1907.9,1907.8,0.15314834]
[1741955874515,29.00907769,1907.9,1907.8,1e-08]
[1741955875115,9.02,1907.9,1907.8,1e-08]
[1741955875317,13.994,1907.9,1907.8,5.39477834]
[1741955875518,13.994,1907.9,1907.8,1e-08]
[1741955875992,18.65062063,1907.9,1907.8,0.15314834]
[1741955878398,13.994,1907.9,1907.8,0.15314834]
[1741955878625,3.0,1907.9,1907.8,1e-08]
[1741955878924,7.974,1907.9,1907.8,5.39477834]
[1741955879230,22.317,1908.0,1907.9,5.24136]
[1741955879617,22.317,1908.0,1907.9,5.39433761]
[1741955880808,17.343,1908.0,1907.9,5.39433761]
[1741955881210,20.343,1908.0,1907.9,0.15297761]
[1741955881411,3.0,1907.9,1907.8,6.02529001]
[1741955881731,3.0,1907.9,1907.8,0.93687559]
[1741955882104,3.0,1908.1,1907.9,5.24121]
[1741955882311,3.0,1908.1,1907.8,11.41996559]
[1741955884224,3.0,1908.1,1908.0,0.15277966]
[1741955885234,4.26306206,1908.1,1908.0,0.15277966]
[1741955885901,9.26606206,1908.1,1908.0,0.15277966]
[1741955887494,8.001,1908.1,1908.0,6.21846966]
[1741955887738,8.001,1908.1,1908.0,6.06569]
[1741955887739,3.0,1908.1,1908.0,6.06569]
[1741955887853,6.02,1908.3,1908.2,5.24054]
[1741955887854,11.02,1908.3,1908.2,5.24054]
[1741955888151,8.0,1908.3,1908.2,5.39294018]
[1741955888802,17.343,1908.4,1908.3,0.7767]
[1741955889018,17.343,1908.4,1908.3,6.16916229]
[1741955889601,5.007,1908.5,1908.4,5.23999]
[1741955889802,16.34206063,1908.9,1908.5,5.23971]
[1741955890020,6.64620606,1908.8,1908.6,0.15114024]
[1741955890223,3.0,1908.7,1908.6,5.39058024]
[1741955890923,8.011,1908.7,1908.6,0.15114024]
[1741955891632,5.011,1908.7,1908.6,0.15114024]
[1741955893157,5.006,1908.7,1908.6,0.91784024]
[1741955893358,5.006,1908.7,1908.6,6.15728024]
[1741955893657,5.005,1908.7,1908.6,7.29696326]
[1741955893955,5.005,1908.7,1908.6,6.15728024]
[1741955895950,14.024,1908.9,1908.8,5.23889]
[1741955896328,14.024,1908.9,1908.8,5.38953119]
[1741955897229,6.02,1908.9,1908.8,6.14473119]
[1741955897567,6.02,1908.9,1908.8,7.80701431]
[1741955899154,20.342,1909.1,1909.0,5.23834]
[1741955899570,20.342,1909.1,1909.0,5.3884768]
[1741955901564,17.342,1909.1,1909.0,5.3884768]
[1741955901870,5.002,1909.3,1909.2,5.23779]
[1741955902074,3.0,1909.5,1909.4,5.237]
[1741955902279,11.022,1909.6,1909.4,5.38634604]
[1741955902441,11.022,1909.6,1909.4,5.92498064]
[1741955903047,3.0,1909.7,1909.4,0.68798064]
[1741955903248,3.0,1909.7,1909.6,5.23651]
[1741955903477,3.0,1909.7,1909.5,5.99123]
[1741955903638,3.0,1909.7,1909.6,0.14822128]
[1741955904534,3.0,1909.7,1909.6,5.38491128]
[1741955904974,3.0,1909.7,1909.6,0.14822128]
[1741955909892,8.23724,1909.5,1909.1,6.02396]
[1741955910101,5.23734,1909.4,1909.2,0.14891937]
[1741955910266,10.24034,1909.4,1909.2,0.14891937]
[1741955910466,15.47774,1909.4,1909.2,0.14891937]
[1741955910795,5.23752,1909.3,1909.2,0.14891937]
[1741955911001,6.24708663,1909.3,1908.9,0.774]
[1741955911176,5.23793,1909.2,1908.9,0.774]
[1741955911563,5.23831,1909.1,1908.9,0.774]
[1741955911763,5.2387,1908.9,1908.7,0.7585]
[1741955911962,10.66523,1909.0,1908.7,0.7585]
[1741955912194,15.90376,1909.0,1908.7,0.7585]
[1741955912399,9.89545063,1908.9,1908.5,6.00689]
[1741955912695,5.23864,1908.9,1908.6,5.23923]
[1741955912898,5.2389,1908.8,1908.5,6.00688]
[1741955915281,3.0,1908.9,1908.8,6.03819]
[1741955916204,11.02,1909.0,1908.8,7.165914]
[1741955916620,11.02,1909.0,1908.3,5.24013]
[1741955916621,9.89529063,1908.9,1908.6,6.00339]
[1741955916906,8.23867,1908.9,1908.6,6.00339]
[1741955918306,3.0,1908.9,1908.7,5.23905]
[1741955918707,3.0,1908.9,1908.7,5.23899]
[1741955918879,3.0,1908.9,1908.8,0.14030442]
[1741955919084,3.0,1908.9,1908.8,5.37919442]
[1741955920218,8.004,1908.9,1908.8,5.37919442]
[1741955921287,6.02,1909.0,1908.9,6.04571]
[1741955921687,6.02,1909.0,1908.9,6.18581666]
[1741955921893,6.02,1909.0,1908.9,5.37871666]
[1741955922637,13.2438,1909.2,1908.9,5.37871666]
[1741955923142,8.006,1909.2,1908.9,10.61719666]
[1741955923741,8.006,1909.2,1908.9,5.37858666]
[1741955924041,13.24382,1909.2,1908.9,5.37858666]
[1741955924540,5.23811,1909.1,1908.9,0.14010666]
[1741955924728,13.24382,1909.2,1908.9,0.14010666]
[1741955924925,15.55761706,1909.2,1908.9,0.14010666]
[1741955925131,15.55761706,1909.2,1908.9,5.37869666]
[1741955925442,8.006,1909.2,1909.0,5.23824]
[1741955925941,8.006,1909.2,1909.1,0.1397112]
[1741955926243,14.026,1909.2,1909.1,0.1397112]
[1741955927039,19.26379,1909.2,1909.1,0.1397112]
[1741955927235,14.026,1909.2,1909.1,0.1397112]
[1741955927436,19.2638,1909.2,1908.9,5.23851]
[1741955927636,19.2638,1909.2,1909.1,0.13967309]
[1741955927840,19.2638,1909.2,1909.0,0.13987081]
[1741955928040,19.2638,1909.2,1909.1,0.13967309]
[1741955928237,22.17959506,1909.2,1909.1,0.13967309]
[1741955928433,22.17959506,1909.2,1908.9,5.2385]
[1741955928635,22.17959506,1909.2,1909.1,0.13967309]
[1741955928813,22.17959506,1909.2,1909.0,0.13987081]
[1741955929007,19.2638,1909.2,1908.9,5.2385]
[1741955929213,14.026,1909.2,1909.1,0.13967309]
[1741955929414,9.02,1909.2,1909.0,5.37808081]
[1741955929734,7.996,1909.1,1909.0,5.23821]
[1741955930448,7.996,1909.1,1908.8,10.47762]
[1741955931315,7.996,1909.1,1908.9,5.2386]
[1741955931514,7.996,1909.1,1909.0,5.23834]
[1741955931928,11.012,1909.2,1909.1,5.23807]
[1741955932840,6.02,1909.2,1909.1,5.23807]
[1741955933143,32.01553,1909.6,1909.3,5.2374]
[1741955933351,4.991,1909.5,1909.2,6.03975]
[1741955933646,7.991,1909.5,1909.2,6.03975]
[1741955934011,7.991,1909.5,1909.3,0.13915798]
[1741955934415,7.991,1909.5,1909.2,6.03963]
[1741955934615,13.22806,1909.5,1909.4,0.13889503]
[1741955934822,8.66404,1909.4,1909.3,0.13909269]
[1741955935043,5.23781,1909.2,1908.9,5.23857]
[1741955935343,5.23781,1909.2,1908.8,6.04085]
[1741955935547,15.33160063,1909.1,1908.5,0.802]
[1741955935711,15.33160063,1909.1,1908.7,5.23908]
[1741955935914,17.68854269,1909.1,1908.7,5.23908]
[1741955936518,12.45036269,1909.1,1908.6,5.23934]
[1741955936719,10.47701,1909.0,1908.6,5.23934]
[1741955937121,5.23877,1908.9,1908.5,11.28125]
[1741955937322,9.89539063,1908.9,1908.5,11.28116]
[1741955937615,15.13427063,1908.9,1908.5,6.04155]
[1741955937820,0.4268,1908.8,1908.5,5.23955]
[1741955938122,0.4268,1908.8,1908.6,5.23938]
[1741955938323,11.83557869,1908.9,1908.5,5.23955]
[1741955938546,11.83557869,1908.9,1908.5,10.47911]
[1741955938746,11.83557869,1908.9,1908.5,5.23955]
[1741955938945,11.83557869,1908.9,1908.5,10.47909]
[1741955939144,11.83557869,1908.9,1908.5,5.23954]
[1741955939341,11.83557869,1908.9,1908.5,10.47913]
[1741955939549,7.17895806,1908.9,1908.5,10.47913]
[1741955940025,1.94018806,1908.9,1908.6,5.23931]
[1741955940342,6.4468,1908.9,1908.6,10.4786]
[1741955940521,6.02,1908.9,1908.8,5.23889]
[1741955940722,6.02,1908.9,1908.7,6.06698]
[1741955941233,11.25867,1908.9,1908.6,5.23941]
[1741955941433,6.02,1908.9,1908.7,5.23914]
[1741955942149,6.02,1908.9,1908.6,5.23928]
[1741955942349,11.25875,1908.9,1908.6,5.23928]
[1741955942854,6.02,1908.9,1908.6,5.23928]
[1741955943734,11.25881,1908.9,1908.5,11.30712]
[1741955944055,15.91543063,1908.9,1908.6,5.23943]
[1741955944627,5.23905,1908.8,1908.4,5.23989]
[1741955944929,5.006,1908.7,1908.5,5.23956]
[1741955945452,5.006,1908.7,1908.6,5.23944]
[1741955946757,5.006,1908.7,1908.5,5.23956]
[1741955946963,5.006,1908.7,1908.5,10.4791]
[1741955947535,5.006,1908.7,1908.6,5.23944]
[1741955948977,5.006,1908.7,1908.6,5.38024885]
[1741955949267,5.006,1908.7,1908.6,6.16804885]
[1741955951547,3.0,1908.8,1908.6,11.40748885]
[1741955951743,8.001,1908.8,1908.6,11.40748885]
[1741955951946,8.001,1908.8,1908.7,5.23916]
[1741955952352,3.0,1908.8,1908.7,5.37977105]
[1741955952540,6.02,1908.9,1908.8,5.23889]
[1741955952744,6.02,1908.9,1908.8,6.03049]
[1741955952946,6.02,1908.9,1908.8,6.17083796]
[1741955953895,5.08342063,1909.6,1909.2,5.23779]
[1741955954091,5.003,1909.4,1909.3,5.23747]
[1741955954372,5.003,1909.4,1909.3,5.37673683]
[1741955954674,5.002,1909.5,1909.4,5.23724]
[1741955954972,3.0,1909.5,1909.4,0.13906918]
[1741955955173,8.001,1909.5,1909.4,0.13906918]
[1741955955472,14.70981087,1909.5,1909.2,5.23778]
[1741955955649,14.70981087,1909.5,1909.4,0.13890049]
[1741955955971,12.89386063,1909.4,1909.0,5.23829]
[1741955956173,5.23793,1909.2,1908.9,5.2385]
[1741955956349,5.016,1909.1,1908.8,5.23886]
[1741955956553,5.016,1909.1,1908.8,5.23874]
[1741955956752,11.74527506,1909.1,1908.8,5.23888]
[1741955957080,11.74527506,1909.1,1908.8,5.23875]
[1741955957081,6.50705506,1909.1,1908.8,5.23875]
[1741955957280,11.74522506,1909.1,1908.8,5.23875]
[1741955957577,3.0,1909.0,1908.8,5.23875]
[1741955958279,3.0,1909.0,1908.9,5.23861]
[1741955958453,3.0,1909.0,1908.8,10.47751]
[1741955958658,3.0,1909.0,1908.8,5.23874]
[1741955958844,3.0,1909.0,1908.9,5.23861]
[1741955959999,3.0,1909.0,1908.8,5.23873]
[1741955960179,3.8016,1909.0,1908.7,6.04209]
[1741955960502,3.8016,1909.0,1908.8,5.23883]
[1741955960813,9.46691,1909.0,1908.6,5.23942]
[1741955961116,5.23872,1908.9,1908.5,5.23967]
[1741955961277,5.23918,1908.7,1908.4,5.23994]
[1741955961601,10.68598,1908.7,1908.4,5.23994]
[1741955962699,5.4468,1908.7,1908.5,5.23968]
[1741955964104,5.4468,1908.7,1908.6,0.14066734]
[1741955964293,5.02,1908.7,1908.6,0.14066734]
[1741955966273,6.60662526,1908.7,1908.6,0.14066734]
[1741955966678,6.60662526,1908.7,1908.4,10.4798]
[1741955966906,5.02,1908.7,1908.6,0.14066734]
[1741955967133,5.02,1908.7,1908.5,0.14086516]
[1741955967405,5.02,1908.7,1908.6,0.14066734]
[1741955967621,13.25916,1908.7,1908.6,0.14066734]
[1741955968120,3.0,1908.4,1908.1,6.03328]
[1741955968478,3.0,1908.4,1908.1,5.24078]
[1741955968996,10.24844,1908.3,1907.9,6.04011]
[1741955969307,10.24844,1908.3,1908.0,5.24099]
[1741955969481,5.24069,1908.2,1907.7,6.00764]
[1741955969682,5.24069,1908.2,1907.8,5.24154]
[1741955969877,12.49597006,1908.2,1907.8,5.24154]
[1741955970082,12.92277006,1908.2,1907.8,5.24154]
[1741955970300,5.2409,1908.1,1907.7,6.00768]
[1741955970605,5.24128,1908.0,1907.6,5.24218]
[1741955970806,5.24128,1908.0,1907.6,10.4842]